[Event "41st Amateur D7"]
[Site "ChessGUI4"]
[Date "2013.07.06"]
[Round "15.1"]
[White "Carballo 0.8"]
[Black "ChessKiss 1.7 64-bit"]
[Result "0-1"]
[BlackElo "2214"]
[ECO "D27"]
[EventDate "2013.??.??"]
[TimeControl "40/1500:40/1500:40/1500"]
[WhiteElo "2273"]

{ i5 Quad } 1.d4 { [%eval 0,1] [%emt 0:00:00] } 1...d5
{ [%eval 0,1] [%emt 0:00:00] } 2.Nf3 { [%eval 0,1] [%emt 0:00:00] } 2...Nf6
{ [%eval 0,1] [%emt 0:00:00] } 3.c4 { [%eval 0,1] [%emt 0:00:00] } 3...dxc4
{ [%eval 0,1] [%emt 0:00:00] } 4.e3 { [%eval 0, 1] [%emt 0:00:00] } 4...e6
{ [%eval 0,1] [%emt 0:00:00] } 5.Bxc4 { [%eval 0,1] [%emt 0:00:00] } 5...c5
{ [%eval 0,1] [%emt 0:00:00] } 6.O-O { [%eval 0,1] [%emt 0:00:00] } 6...a6
{ [%eval 0,1] [%emt 0:00:00] } 7.Bd3 { [%eval 0,1] [%emt 0:00:00] } 7...Nbd7
{ [%eval 0,1] [%emt 0:00:00] } 8.Qe2 { [%eval 0,1] [%emt 0:00:00] } 8...b6
{ [%eval 0,1] [%emt 0:00:00] } 9.Nbd2 { [%eval 42,11] [%emt 0:00:37] }
9...Be7 { [%eval -37,11] [%emt 0:00:43] (Bb7) } 10.b3
{ [%eval 38,13] [%emt 0:00:36] (e4) } 10...cxd4
{ [%eval -4,12] [%emt 0:00:41] (O-O) } 11.exd4
{ [%eval 54,15] [%emt 0:00:35] (exd4) } 11...Bb7
{ [%eval -21,13] [%emt 0:00:40] (Bb7) } 12.Bb2
{ [%eval 48,14] [%emt 0:00:34] (Ne4) } 12...Nd5
{ [%eval 12,12] [%emt 0:00:48] (O-O) } 13.g3
{ [%eval 49,13] [%emt 0: 00:33] (g3) } 13...O-O
{ [%eval 13,13] [%emt 0:00:37] (O-O) } 14.Rfc1
{ [%eval 53,13] [%emt 0:00:32] (Rac1) } 14...Nb4
{ [%eval 13,12] [%emt 0:00:40] (h5) } 15.Be4
{ [%eval 50,14] [%emt 0:00:32] (Be4) } 15...Nd5
{ [%eval -4,12] [%emt 0:00:35] (Bxe4) } 16.a4
{ [%eval 52,13] [%emt 0:00:31] (Ne5) } 16...N7f6
{ [%eval 60,13] [%emt 0:00:35] (a5) } 17.h4
{ [%eval 55,12] [%emt 0:00:30] (Ba3) } 17...Nxe4
{ [%eval 108,12] [%emt 0: 00:36] (Nxe4) } 18.Qxe4
{ [%eval 42,14] [%emt 0:00:29] (Qxe4) } 18...Rc8
{ [%eval 94, 12] [%emt 0:00:30] (b5) } 19.Rxc8
{ [%eval 56,13] [%emt 0:00:29] (Ne5) } 19...Qxc8
{ [%eval 109,13] [%emt 0:00:33] (Qxc8) } 20.Rc1
{ [%eval 40,14] [%emt 0:00:28] (Rc1) } 20...Qb8
{ [%eval 102,13] [%emt 0:00:30] (Qa8) } 21.Qe5
{ [%eval 29,13] [%emt 0:00:27] (Ne5) } 21...Qa8
{ [%eval 102,12] [%emt 0:00:30] (Rc8) } 22.Qe2
{ [%eval 38, 12] [%emt 0:00:26] (Ng5) } 22...Rc8
{ [%eval 94,13] [%emt 0:00:29] (Rc8) } 23.Nc4
{ [%eval 31,13] [%emt 0:00:26] (Rc4) } 23...Nf4
{ [%eval 120,12] [%emt 0:00:28] (Rc7) } 24.Qe3
{ [%eval 22,15] [%emt 0:00:25] (Qe3) } 24...Nd5
{ [%eval 122,12] [%emt 0:00:27] (Nd5) } 25.Qe2
{ [%eval 32,15] [%emt 0:00:24] (Qe1) } 25...b5
{ [%eval 109,12] [%emt 0: 00:26] (b5) } 26.axb5
{ [%eval 31,14] [%emt 0:00:24] (axb5) } 26...axb5
{ [%eval 96,12] [%emt 0:00:25] (axb5) } 27.Ra1
{ [%eval 13,15] [%emt 0:00:23] (Ra1) } 27...Qb8
{ [%eval 75,13] [%emt 0:00:25] (Ba6) } 28.Nce5
{ [%eval 39,14] [%emt 0:00:23] (Nce5) } 28...b4
{ [%eval 71,12] [%emt 0:00:24] (b4) } 29.Nc4
{ [%eval 33,12] [%emt 0: 00:22] (Ng5) } 29...Bf8
{ [%eval 101,12] [%emt 0:00:23] (Nc3) } 30.Nfe5
{ [%eval 61,11] [%emt 0:00:21] (Nfe5) } 30...Rc7
{ [%eval 100,12] [%emt 0:00:23] (Bd6) } 31.Qe1
{ [%eval 72,10] [%emt 0:00:21] (Qe1) } 31...Qd8
{ [%eval 98,11] [%emt 0:00:22] (g6) } 32.Nd3
{ [%eval 66,11] [%emt 0:00:20] (Ra7) } 32...Nc3
{ [%eval 143,12] [%emt 0:00:21] (g5) } 33.Bxc3
{ [%eval 38,13] [%emt 0:00:20] (Bxc3) } 33...Qd5
{ [%eval 140,13] [%emt 0:00:21] (Qd5) } 34.Kf1
{ [%eval -30,14] [%emt 0:00:19] (Kf1) } 34...Qg2+
{ [%eval 145, 12] [%emt 0:00:20] (bxc3) } 35.Ke2
{ [%eval 38,14] [%emt 0:00:19] (Ke2) } 35...bxc3
{ [%eval 146,11] [%emt 0:00:19] (bxc3) } 36.Qxc3
{ [%eval 38,13] [%emt 0:00:18] (Qxc3) } 36...Qf3+
{ [%eval 145,11] [%emt 0:00:19] (Qf3) } 37.Kd2
{ [%eval -47,14] [%emt 0:00:18] (Kd2) } 37...g6
{ [%eval 186,12] [%emt 0:00:17] (g6) } 38.Ra7
{ [%eval -47,12] [%emt 0:00:17] (Ra7) } 38...Rc8
{ [%eval 180,11] [%emt 0:00:21] (Rc8) } 39.Qa1
{ [%eval -72,13] [%emt 0:00:17] (Qa1) } 39...Bh6+
{ [%eval 200,11] [%emt 0:00:17] (Be4) } 40.Kc3
{ [%eval -89,15] [%emt 0:00:17] (Kc3) } 40...Be4
{ [%eval 254,11] [%emt 0:00: 17] (Bg7) } 41.Qf1
{ [%eval -94,15] [%emt 0:00:54] (Qf1) } 41...Bg7
{ [%eval 294,12] [%emt 0:00:59] (Bg7) } 42.Rd7
{ [%eval -114,14] [%emt 0:00:52] (Rd7) } 42...e5
{ [%eval 365,12] [%emt 0:00:57] (Bf5) } 43.Kc2
{ [%eval -174,14] [%emt 0:00:51] (Ra7) } 43...exd4
{ [%eval 387,12] [%emt 0:00:56] (exd4) } 44.Re7
{ [%eval -237,15] [%emt 0:00:50] (Re7) } 44...Bf6
{ [%eval 404,13] [%emt 0:00:54] (h5) } 45.Rxe4
{ [%eval -233,16] [%emt 0:00:48] (Ra7) } 45...Qxe4
{ [%eval 419,14] [%emt 0:00:52] (Qxe4) } 46.Qe1
{ [%eval -224,14] [%emt 0:00:47] (Kb2) } 46...Qb7
{ [%eval 438,13] [%emt 0:00:46] (Qb7) } 47.Qd2
{ [%eval -221,12] [%emt 0:00:46] (h5) } 47...Bg7
{ [%eval 450,12] [%emt 0:00:50] (Re8) } 48.Qb4
{ [%eval -224,13] [%emt 0:00:45] (f4) } 48...Qa6
{ [%eval 447,13] [%emt 0:00:48] (Qf3) } 49.Nc1
{ [%eval -254,14] [%emt 0:00:44] (Kb2) } 49...Qa1
{ [%eval 480,12] [%emt 0:00:47] (h5) } 50.f4
{ [%eval -261, 14] [%emt 0:00:43] (Qd2) } 50...h5
{ [%eval 479,12] [%emt 0:00:45] (Bf8) } 51.Qd2
{ [%eval -259,16] [%emt 0:00:42] (Qd2) } 51...Kh7
{ [%eval 487,13] [%emt 0:00:44] (Qa8) } 52.Qd3
{ [%eval -257,14] [%emt 0:00:40] (Nd3) } 52...Rc7
{ [%eval 494,13] [%emt 0:00: 43] (Qa8) } 53.Kd2
{ [%eval -250,16] [%emt 0:00:39] (Ne2) } 53...Kh6
{ [%eval 494,13] [%emt 0:00:42] (f5) } 54.Kd1
{ [%eval -246,14] [%emt 0:00:38] (Kd1) } 54...Kh7
{ [%eval 491,13] [%emt 0:00:40] (f5) } 55.Qd2
{ [%eval -249,16] [%emt 0:00:38] (Qd2) } 55...Rc8
{ [%eval 485,12] [%emt 0:00:39] (Bf8) } 56.Qd3
{ [%eval -253,15] [%emt 0:00:37] (Kc2) } 56...Bf8
{ [%eval 486,12] [%emt 0:00:38] (Re8) } 57.Kc2
{ [%eval -259,15] [%emt 0:00:36] (Qd2) } 57...Rc7
{ [%eval 480,12] [%emt 0:00:37] (f5) } 58.Ne2
{ [%eval -243,15] [%emt 0:00:35] (Ne2) } 58...Bg7
{ [%eval 476,12] [%emt 0:00: 36] (Bg7) } 59.Kd2
{ [%eval -247,15] [%emt 0:00:34] (Qd1) } 59...Re7
{ [%eval 513,12] [%emt 0:00:35] (f5) } 60.Nc1
{ [%eval -255,15] [%emt 0:00:33] (Ne5) } 60...Qa8
{ [%eval 467,12] [%emt 0:00:34] (f5) } 61.Qf1
{ [%eval -274,14] [%emt 0:00:32] (Kc2) } 61...Re6
{ [%eval 467,11] [%emt 0:00:33] (f5) } 62.Qf2
{ [%eval -253,12] [%emt 0:00:31] (Kd1) } 62...Qa1
{ [%eval 546,12] [%emt 0:00:32] (Kg8) } 63.Kd1
{ [%eval -344, 15] [%emt 0:00:31] (Qf3) } 63...d3
{ [%eval 647,15] [%emt 0:00:30] (Qc3) } 64.Ne5
{ [%eval -396,15] [%emt 0:00:30] (Ne5) } 64...Rd6
{ [%eval 699,15] [%emt 0:00:31] (Rd6) } 65.Qd2
{ [%eval -447,17] [%emt 0:00:29] (Qd2) } 65...Bxe5
{ [%eval 830,16] [%emt 0:00: 30] (Bxe5) } 66.fxe5
{ [%eval -671,16] [%emt 0:00:28] (fxe5) } 66...Qxe5
{ [%eval 844, 16] [%emt 0:00:29] (Qxe5) } 67.Nxd3
{ [%eval -454,14] [%emt 0:00:28] (Nxd3) } 67...Qa1+
{ [%eval 873,14] [%emt 0:00:28] (Qa1) } 68.Ke2
{ [%eval -799,18] [%emt 0:00: 27] (Ke2) } 68...Re6+
{ [%eval 878,14] [%emt 0:00:27] (Re6) } 69.Kf2
{ [%eval -735,17] [%emt 0:00:26] (Kf2) } 69...Qd4+
{ [%eval 880,14] [%emt 0:00:26] (Qd4) } 70.Kf3
{ [%eval -751,18] [%emt 0:00:25] (Kg2) } 70...Qd5+
{ [%eval 908,13] [%emt 0:00:25] (Qd5) } 71.Kf2
{ [%eval -806,19] [%emt 0:00:25] (Kf2) } 0-1

[Event "41st Amateur D7"]
[Site "ChessGUI4"]
[Date "2013.07.07"]
[Round "15.2"]
[White "FireFly 2.6.0 64-bit"]
[Black "Shallow 1.0 64-bit"]
[Result "1/2-1/2"]
[BlackElo "2200"]
[ECO "D15"]
[EventDate "2013.??.??"]
[TimeControl "40/1500:40/1500:40/1500"]
[WhiteElo "2258"]

{ i5 Quad } 1.d4 { [%eval 0,1] [%emt 0:00:00] } 1...d5
{ [%eval 0,1] [%emt 0:00:00] } 2.c4 { [%eval 0,1] [%emt 0:00:00] } 2...c6
{ [%eval 0,1] [%emt 0:00:00] } 3.Nf3 { [%eval 0,1] [%emt 0:00:00] } 3...Nf6
{ [%eval 0,1] [%emt 0:00:00] } 4.Nc3 { [%eval 0, 1] [%emt 0:00:00] } 4...a6
{ [%eval 0,1] [%emt 0:00:00] } 5.Qc2 { [%eval 0,1] [%emt 0: 00:00] } 5...g6
{ [%eval 0,1] [%emt 0:00:00] } 6.cxd5 { [%eval 0,1] [%emt 0:00:00] } 6...cxd5
{ [%eval 0,1] [%emt 0:00:00] } 7.Bg5 { [%eval 0,1] [%emt 0:00:00] } 7...Nc6
{ [%eval 0,1] [%emt 0:00:00] } 8.Bxf6 { [%eval 0,1] [%emt 0:00:00] } 8...exf6
{ [%eval 0,1] [%emt 0:00:00] } 9.e3 { [%eval 62,11] [%emt 0:00:57] } 9...Be6
{ [%eval -21,13] [%emt 0:00:42] (Be6) } 10.Be2
{ [%eval 47,11] [%emt 0:00:56] (Rc1) } 10...Rc8
{ [%eval -19,14] [%emt 0:00:42] (Bd6) } 11.O-O
{ [%eval 50,11] [%emt 0:00:56] (O-O) } 11...Bg7
{ [%eval -18,14] [%emt 0:00:42] (Bb4) } 12.Rfd1
{ [%eval 69,11] [%emt 0:00:55] (Rac1) } 12...O-O
{ [%eval -13,14] [%emt 0:00:42] (O-O) } 13.e4
{ [%eval 56, 12] [%emt 0:00:54] (Rac1) } 13...Re8
{ [%eval 6,14] [%emt 0:00:42] (Ne7) } 14.exd5
{ [%eval 25,12] [%emt 0:00:53] (exd5) } 14...Bxd5
{ [%eval 0,13] [%emt 0:00:42] (Bxd5) } 15.Qd2
{ [%eval 14,11] [%emt 0:00:44] (Qd2) } 15...f5
{ [%eval 9,14] [%emt 0:00:42] (f5) } 16.Nxd5
{ [%eval -4,12] [%emt 0:00:43] (Ne5) } 16...Qxd5
{ [%eval 90,14] [%emt 0:00:42] (Qxd5) } 17.Rac1
{ [%eval -13,12] [%emt 0:00:43] (Rac1) } 17...Qxa2
{ [%eval 89,13] [%emt 0:00:42] (Qxa2) } 18.d5
{ [%eval -7,11] [%emt 0:00:42] (Bc4) } 18...Na5
{ [%eval 87,14] [%emt 0:00:42] (Nb8) } 19.Rxc8
{ [%eval 9,12] [%emt 0:00:42] (Rxc8) } 19...Rxc8
{ [%eval 107,15] [%emt 0:00:42] (Rxc8) } 20.d6
{ [%eval 0,12] [%emt 0:00:33] (d6) } 20...Nc6
{ [%eval 107,13] [%emt 0:00:42] (Nc6) } 21.Qe3
{ [%eval 20,11] [%emt 0:00:33] (d7) } 21...Qxb2
{ [%eval 131,13] [%emt 0:00:42] (Bxb2) } 22.d7
{ [%eval 26,11] [%emt 0:00:33] (d7) } 22...Rf8
{ [%eval 131,13] [%emt 0:00:42] (Rf8) } 23.Bc4
{ [%eval 19,10] [%emt 0:00:33] (Bc4) } 23...Nd8
{ [%eval 133,13] [%emt 0:00:42] (Nd8) } 24.Qb3
{ [%eval -2,10] [%emt 0:00:33] (Bd5) } 24...b5
{ [%eval 179,15] [%emt 0: 00:42] (Qf6) } 25.Qxb2
{ [%eval -13,12] [%emt 0:00:33] (Qxb2) } 25...Bxb2
{ [%eval 172, 15] [%emt 0:00:42] (Bxb2) } 26.Bd5
{ [%eval -48,12] [%emt 0:00:33] (Ba2) } 26...Bc3
{ [%eval 180,14] [%emt 0:00:42] (Bf6) } 27.Rd3
{ [%eval -48,12] [%emt 0:00:33] (Ba2) } 27...Bb4
{ [%eval 109,15] [%emt 0:01:08] (b4) } 28.Rb3
{ [%eval -24,12] [%emt 0:00:33] (Rb3) } 28...Bd6
{ [%eval 109,15] [%emt 0:00:41] (Bd6) } 29.Rb1
{ [%eval -63, 12] [%emt 0:00:33] (Rb2) } 29...Kg7
{ [%eval 109,15] [%emt 0:00:41] (Kg7) } 30.Ra1
{ [%eval -50,12] [%emt 0:00:33] (Ra1) } 30...Kf6
{ [%eval 113,15] [%emt 0:00:41] (Kf6) } 31.Re1
{ [%eval -66,11] [%emt 0:00:33] (Rxa6) } 31...h6
{ [%eval 182,14] [%emt 0:00: 41] (h6) } 32.Re8
{ [%eval -75,11] [%emt 0:00:33] (Re8) } 32...Kg7
{ [%eval 117,15] [%emt 0:00:41] (Kg7) } 33.Re2
{ [%eval -60,11] [%emt 0:00:33] (Re2) } 33...Bc5
{ [%eval 117,15] [%emt 0:00:41] (f4) } 34.Re5
{ [%eval -87,11] [%emt 0:00:33] (Ra2) } 34...f6
{ [%eval 184,14] [%emt 0:01:04] (Bb6) } 35.Re1
{ [%eval -64,12] [%emt 0:00:33] (Re2) } 35...Bb4
{ [%eval 94,14] [%emt 0:00:38] (f4) } 36.Re8
{ [%eval 0,12] [%emt 0:00:33] (Rc1) } 36...Bc5
{ [%eval 94,15] [%emt 0:00:38] (Bc5) } 37.Re1
{ [%eval 0,14] [%emt 0:00:33] (Re1) } 37...Bb4
{ [%eval 78,15] [%emt 0:00:38] } 38.Re8 { [%eval 0,14] [%emt 0:00:33] (Re8) }
38...Bc5 { [%eval 0,15] [%emt 0:00:38] (Bc5) } 39.Re1
{ [%eval 0,14] [%emt 0:00:33] (Re1) } 1/2-1/2

[Event "41st Amateur D7"]
[Site "ChessGUI4"]
[Date "2013.07.07"]
[Round "15.3"]
[White "Tigran 2.3 64-bit"]
[Black "MadChess 1.2"]
[Result "0-1"]
[BlackElo "2200"]
[ECO "C63"]
[EventDate "2013.??.??"]
[TimeControl "40/1500:40/1500:40/1500"]
[WhiteElo "2289"]

{ i5 Quad } 1.e4 { [%eval 0,1] [%emt 0:00:00] } 1...e5
{ [%eval 0,1] [%emt 0:00:00] } 2.Nf3 { [%eval 0,1] [%emt 0:00:00] } 2...Nc6
{ [%eval 0,1] [%emt 0:00:00] } 3.Bb5 { [%eval 0,1] [%emt 0:00:00] } 3...f5
{ [%eval 0,1] [%emt 0:00:00] } 4.d3 { [%eval 0,1] [%emt 0:00:00] } 4...fxe4
{ [%eval 0,1] [%emt 0:00:00] } 5.dxe4 { [%eval 0,1] [%emt 0: 00:00] } 5...Nf6
{ [%eval 0,1] [%emt 0:00:00] } 6.O-O { [%eval 0,1] [%emt 0:00:00] } 6...d6
{ [%eval 0,1] [%emt 0:00:00] } 7.Nc3 { [%eval 0,1] [%emt 0:00:00] } 7...Be7
{ [%eval 0, 1] [%emt 0:00:00] } 8.Bc4 { [%eval 0,1] [%emt 0:00:00] } 8...Na5
{ [%eval 0,1] [%emt 0:00:00] } 9.Be2 { [%eval 44,13] [%emt 0:00:42] } 9...O-O
{ [%eval -28,11] [%emt 0:00: 48] } 10.b4
{ [%eval 53,13] [%emt 0:00:42] (b4) } 10...Nc6
{ [%eval -21,11] [%emt 0:00: 17] (Nc6) } 11.b5
{ [%eval 55,13] [%emt 0:00:42] (b5) } 11...Na5
{ [%eval -27,12] [%emt 0:00:27] (Na5) } 12.Nd5
{ [%eval 51,13] [%emt 0:00:43] (Nd5) } 12...Bg4
{ [%eval -50,12] [%emt 0:00:44] (Nxd5) } 13.Ng5
{ [%eval 77,14] [%emt 0:00:42] (Nxe7) } 13...Bxe2
{ [%eval -52,13] [%emt 0:00:37] (Bxe2) } 14.Qxe2
{ [%eval 72,15] [%emt 0:00:43] (Qxe2) } 14...Qd7
{ [%eval -50,13] [%emt 0:00:38] (Qd7) } 15.Nxe7+
{ [%eval 72,14] [%emt 0:00:34] (Nxe7) } 15...Qxe7
{ [%eval -55,14] [%emt 0:00:29] (Qxe7) } 16.Bd2
{ [%eval 70,15] [%emt 0:00:36] (Bd2) } 16...h6
{ [%eval -69,14] [%emt 0:01: 16] (h6) } 17.Nf3
{ [%eval 59,15] [%emt 0:00:43] (Nf3) } 17...b6
{ [%eval -52,13] [%emt 0:00:36] (b6) } 18.Bxa5
{ [%eval 59,14] [%emt 0:00:44] (Nh4) } 18...bxa5
{ [%eval -51,11] [%emt 0:00:26] (bxa5) } 19.Rfd1
{ [%eval 44,13] [%emt 0:00:44] (Nh4) } 19...Qf7
{ [%eval -26,11] [%emt 0:01:29] (Qe6) } 20.c3
{ [%eval 46,12] [%emt 0: 00:44] (a4) } 20...Rfb8
{ [%eval -14,11] [%emt 0:00:22] (Rfb8) } 21.Rab1
{ [%eval 38, 13] [%emt 0:00:44] (Rab1) } 21...Rb6
{ [%eval -19,12] [%emt 0:00:30] (Rb6) } 22.c4
{ [%eval 34,13] [%emt 0:00:45] (c4) } 22...a6
{ [%eval -5,11] [%emt 0:00:28] (a6) } 23.bxa6
{ [%eval 26,13] [%emt 0:00:45] (c5) } 23...Rbxa6
{ [%eval 8,12] [%emt 0:00:37] (Rbxa6) } 24.Rb5
{ [%eval 25,12] [%emt 0:00:45] (c5) } 24...Rc6
{ [%eval 9,10] [%emt 0: 00:27] (Qg6) } 25.c5
{ [%eval 25,13] [%emt 0:00:45] (c5) } 25...a4
{ [%eval 4,12] [%emt 0:03:03] (Qg6) } 26.Rdb1
{ [%eval 25,12] [%emt 0:00:40] (h3) } 26...Qe6
{ [%eval 17,12] [%emt 0:00:45] (Qe8) } 27.cxd6
{ [%eval 6,13] [%emt 0:00:47] (cxd6) } 27...cxd6
{ [%eval 31,12] [%emt 0:00:33] (cxd6) } 28.R5b4
{ [%eval -31,13] [%emt 0:00:47] (R5b4) } 28...Rac8
{ [%eval 60,12] [%emt 0:01:39] (Rac8) } 29.Rxa4
{ [%eval -32,13] [%emt 0:00:47] (a3) } 29...d5
{ [%eval 70,12] [%emt 0:00:15] (d5) } 30.exd5
{ [%eval -69,13] [%emt 0:00:48] (Re1) } 30...Nxd5
{ [%eval 84,12] [%emt 0:00:16] (Nxd5) } 31.Re1
{ [%eval -111,14] [%emt 0:00:48] (Ra7) } 31...Nc3
{ [%eval 88,14] [%emt 0:00:48] (Nc3) } 32.Qxe5
{ [%eval -121,15] [%emt 0:00:49] (Qc2) } 32...Qxe5
{ [%eval 138,15] [%emt 0:00:36] (Qxe5) } 33.Nxe5
{ [%eval -127,17] [%emt 0:00:44] (Nxe5) } 33...Nxa4
{ [%eval 142,15] [%emt 0:01:00] (Nxa4) } 34.Nxc6
{ [%eval -134,17] [%emt 0:00:50] (Nxc6) } 34...Rxc6
{ [%eval 136,14] [%emt 0:02:28] (Rxc6) } 35.Kf1
{ [%eval -163,16] [%emt 0:00:51] (a3) } 35...Ra6
{ [%eval 171,13] [%emt 0:00:37] (Ra6) } 36.Rc1
{ [%eval -167,16] [%emt 0:00:52] (Rc1) } 36...Nb2
{ [%eval 164,12] [%emt 0:00: 11] (Nb2) } 37.Rc8+
{ [%eval -171,16] [%emt 0:00:53] (Ra1) } 37...Kf7
{ [%eval 192,13] [%emt 0:00:41] (Kf7) } 38.Ke2
{ [%eval -171,16] [%emt 0:00:55] (Rc2) } 38...Rxa2
{ [%eval 193,13] [%emt 0:00:32] (Rxa2) } 39.Rc2
{ [%eval -171,15] [%emt 0:00:56] (Rc2) } 39...Ke6
{ [%eval 201,13] [%emt 0:00:24] (Kf6) } 40.g3
{ [%eval -174,14] [%emt 0:00:59] (h4) } 40...Kd5
{ [%eval 208,12] [%emt 0:00:09] (Ke5) } 41.h4
{ [%eval -195, 14] [%emt 0:00:34] (h4) } 41...Kd4
{ [%eval 215,16] [%emt 0:02:36] (Kd4) } 42.h5
{ [%eval -178,16] [%emt 0:00:30] (h5) } 42...Nd3
{ [%eval 202,18] [%emt 0:07:45] (Ke4) } 43.Rxa2
{ [%eval -26,19] [%emt 0:00:34] (Rxa2) } 43...Nc1+
{ [%eval 261,19] [%emt 0: 01:12] (Nc1) } 44.Kf3
{ [%eval -268,19] [%emt 0:00:27] (Kf3) } 44...Nxa2
{ [%eval 307, 18] [%emt 0:00:27] (Nxa2) } 45.Kf4
{ [%eval -268,17] [%emt 0:00:34] (Kf4) } 45...Nc3
{ [%eval 351,19] [%emt 0:01:27] (Nc3) } 46.g4
{ [%eval -307,18] [%emt 0:00:34] (g4) } 46...Ne4
{ [%eval 351,18] [%emt 0:00:24] (Ne4) } 47.f3
{ [%eval -359,18] [%emt 0:00:34] (f3) } 47...Ng5
{ [%eval 383,19] [%emt 0:00:32] (Nd6) } 48.Kf5
{ [%eval -327, 19] [%emt 0:00:33] (Kf5) } 48...Nxf3
{ [%eval 475,21] [%emt 0:00:59] (Nxf3) } 49.Kf4
{ [%eval -433,19] [%emt 0:00:31] (Kg6) } 49...Ne5
{ [%eval 518,22] [%emt 0:01:01] (Ne5) } 50.Kf5
{ [%eval -488,20] [%emt 0:00:35] (Kf5) } 50...Kd5
{ [%eval 533,22] [%emt 0:00: 30] (Kd5) } 51.g5
{ [%eval -466,16] [%emt 0:00:35] (g5) } 51...hxg5
{ [%eval 551,22] [%emt 0:00:31] } 52.Kxg5
{ [%eval -500,19] [%emt 0:00:28] (Kxg5) } 0-1